fUSD/lending_fUSD_20260606
["ID","MTS","AMOUNT","RATE_DAILY","PERIOD"]
[424282914,1780745441000,-233.76,0.00010027,2]
[424282918,1780745441000,-193543.01324119,0.000103,2]
[424282920,1780745441000,-3281.1098649,0.00010666,2]
[424282919,1780745441000,-7426.0801257,0.00010666,2]
[424282917,1780745441000,-2000.0,0.00010274,2]
[424282915,1780745441000,-263.05797644,0.000101,2]
[424282913,1780745441000,-208.51522987,0.0001,2]
[424282916,1780745441000,-2462.22,0.00010195,2]
[424282911,1780745441000,-7272.34294282,0.0001,2]
[424282922,1780745441000,-12370.8540087,0.00010666,2]
[424282925,1780745441000,-258860.92361088,0.000107,2]
[424282926,1780745441000,-1422.40298316,0.000107,2]
[424282923,1780745441000,-271.70189762,0.000107,2]
[424282891,1780745441000,-500.0,8.275e-05,2]
[424282921,1780745441000,-226297.2146597,0.00010666,2]
[424282912,1780745441000,-163.61,0.0001,2]
[424282924,1780745441000,-114887.50110641,0.000107,2]
[424282908,1780745441000,-1955.43910252,0.0001,2]
[424282898,1780745441000,-166.67,8.396e-05,2]
[424282895,1780745441000,-300.0,8.275e-05,2]
[424282892,1780745441000,-500.0,8.275e-05,2]
[424282893,1780745441000,-500.0,8.275e-05,2]
[424282897,1780745441000,-7942.99,8.329e-05,2]
[424282900,1780745441000,-4695.28,8.781e-05,2]
[424282896,1780745441000,-167.44660901,8.275e-05,2]
[424282904,1780745441000,-2000.0,9.247e-05,2]
[424282903,1780745441000,-1852.42,9.003e-05,2]
[424282905,1780745441000,-166.67,9.319e-05,2]
[424282901,1780745441000,-161.34,8.836e-05,2]
[424282907,1780745441000,-250.0,9.941e-05,2]
[424282906,1780745441000,-166.67,9.781e-05,2]
[424282902,1780745441000,-166.67,8.858e-05,2]
[424282909,1780745441000,-2769.40071782,0.0001,2]
[424282932,1780745443000,-8998.99167547,0.000107,2]
[424282940,1780745446000,-660.27690764,0.000107,2]
[424282939,1780745446000,-682.72309236,0.0001,2]
[424282943,1780745570000,-2514.22316013,0.00015,14]
[424282944,1780745570000,-16602.6014512,0.0001611,15]
[424282945,1780745570000,-1501.7996117,0.0001995,15]
[424282947,1780745570000,-2890.8,0.000224,14]
[424282948,1780745570000,-880.98792683,0.0002297,14]
[424282946,1780745570000,-229.9,0.0002,21]
[424282963,1780745589000,-500.0,0.00022,7]
[424282962,1780745589000,-500.0,0.00022,7]
[424282961,1780745589000,-2000.0,0.00022,12]
[424282959,1780745589000,-500.0,0.00021356,7]
[424282960,1780745589000,-2000.0,0.00022,7]
[424282958,1780745589000,-1400.0,0.00021356,7]
[424282955,1780745589000,-200.0,0.0002,10]
[424282957,1780745589000,-500.0,0.00021356,7]
[424282954,1780745589000,-2000.0,0.0002,12]
[424282953,1780745589000,-2250.0,0.00019603,7]
[424282952,1780745589000,-3468.96,0.000176,7]
[424282964,1780745589000,-500.0,0.00022,7]
[424282950,1780745589000,-2000.0,0.0001529,7]
[424282949,1780745589000,-152.0,0.00014223,7]
[424282956,1780745589000,-300.0,0.000201,10]
[424282965,1780745589000,-500.0,0.00022,7]
[424282951,1780745589000,-160.0,0.00016,8]
[424282967,1780745589000,-500.0,0.00022,7]
[424282966,1780745589000,-500.0,0.00022,7]
[424282982,1780745589000,-500.0,0.00022,7]
[424282983,1780745589000,-500.0,0.00022,7]
[424282981,1780745589000,-500.0,0.00022,7]
[424282977,1780745589000,-500.0,0.00022,7]
[424282980,1780745589000,-500.0,0.00022,7]
[424282978,1780745589000,-500.0,0.00022,7]
[424282975,1780745589000,-500.0,0.00022,7]
[424282979,1780745589000,-500.0,0.00022,7]
[424282976,1780745589000,-500.0,0.00022,7]
[424282973,1780745589000,-500.0,0.00022,7]
[424282970,1780745589000,-500.0,0.00022,7]
[424282971,1780745589000,-500.0,0.00022,7]
[424282969,1780745589000,-500.0,0.00022,7]
[424282972,1780745589000,-500.0,0.00022,7]
[424282974,1780745589000,-500.0,0.00022,7]
[424282968,1780745589000,-500.0,0.00022,7]
[424282999,1780745590000,-500.0,0.00022,7]
[424283002,1780745590000,-500.0,0.00022,7]
[424283003,1780745590000,-500.0,0.00022,7]
[424283005,1780745590000,-500.0,0.00022,7]
[424283000,1780745590000,-500.0,0.00022,7]
[424282996,1780745590000,-500.0,0.00022,7]
[424282997,1780745590000,-500.0,0.00022,7]
[424282998,1780745590000,-500.0,0.00022,7]
[424282995,1780745590000,-500.0,0.00022,7]
[424282986,1780745590000,-500.0,0.00022,7]
[424282993,1780745590000,-500.0,0.00022,7]
[424282992,1780745590000,-500.0,0.00022,7]
[424282991,1780745590000,-500.0,0.00022,7]
[424282990,1780745590000,-500.0,0.00022,7]
[424282987,1780745590000,-500.0,0.00022,7]
[424282988,1780745590000,-500.0,0.00022,7]
[424282989,1780745590000,-500.0,0.00022,7]
[424283001,1780745590000,-500.0,0.00022,7]
[424282985,1780745590000,-500.0,0.00022,7]
[424282984,1780745590000,-500.0,0.00022,7]
[424282994,1780745590000,-500.0,0.00022,7]
[424283007,1780745590000,-500.0,0.00022,7]
[424283004,1780745590000,-500.0,0.00022,7]
[424283006,1780745590000,-500.0,0.00022,7]
[424283009,1780745590000,-500.0,0.00022,7]
[424283030,1780745590000,-500.0,0.00022,7]
[424283029,1780745590000,-500.0,0.00022,7]
[424283026,1780745590000,-500.0,0.00022,7]
[424283028,1780745590000,-500.0,0.00022,7]
[424283027,1780745590000,-500.0,0.00022,7]
[424283024,1780745590000,-500.0,0.00022,7]
[424283023,1780745590000,-500.0,0.00022,7]
[424283022,1780745590000,-500.0,0.00022,7]
[424283020,1780745590000,-500.0,0.00022,7]
[424283021,1780745590000,-500.0,0.00022,7]
[424283025,1780745590000,-500.0,0.00022,7]
[424283018,1780745590000,-500.0,0.00022,7]
[424283017,1780745590000,-500.0,0.00022,7]
[424283016,1780745590000,-500.0,0.00022,7]
[424283015,1780745590000,-500.0,0.00022,7]
[424283014,1780745590000,-500.0,0.00022,7]
[424283013,1780745590000,-500.0,0.00022,7]
[424283011,1780745590000,-500.0,0.00022,7]
[424283012,1780745590000,-500.0,0.00022,7]
[424283010,1780745590000,-500.0,0.00022,7]
[424283019,1780745590000,-500.0,0.00022,7]
[424283008,1780745590000,-500.0,0.00022,7]
[424283051,1780745591000,-500.0,0.00022,7]
[424283047,1780745591000,-500.0,0.00022,7]
[424283046,1780745591000,-500.0,0.00022,7]
[424283049,1780745591000,-500.0,0.00022,7]
[424283054,1780745591000,-500.0,0.00022,7]
[424283050,1780745591000,-500.0,0.00022,7]
[424283053,1780745591000,-500.0,0.00022,7]
[424283052,1780745591000,-500.0,0.00022,7]
[424283045,1780745591000,-500.0,0.00022,7]
[424283048,1780745591000,-500.0,0.00022,7]
[424283043,1780745591000,-500.0,0.00022,7]
[424283033,1780745591000,-500.0,0.00022,7]
[424283040,1780745591000,-500.0,0.00022,7]
[424283042,1780745591000,-500.0,0.00022,7]
[424283041,1780745591000,-500.0,0.00022,7]
[424283036,1780745591000,-500.0,0.00022,7]
[424283039,1780745591000,-500.0,0.00022,7]
[424283038,1780745591000,-500.0,0.00022,7]
[424283037,1780745591000,-500.0,0.00022,7]
[424283035,1780745591000,-500.0,0.00022,7]
[424283032,1780745591000,-500.0,0.00022,7]
[424283034,1780745591000,-500.0,0.00022,7]
[424283031,1780745591000,-500.0,0.00022,7]
[424283044,1780745591000,-500.0,0.00022,7]
[424283055,1780745591000,-500.0,0.00022,7]
[424283066,1780745591000,-500.0,0.00022,7]
[424283057,1780745591000,-500.0,0.00022,7]
[424283082,1780745591000,-500.0,0.00022,7]
[424283081,1780745591000,-500.0,0.00022,7]
[424283079,1780745591000,-412.17,0.00022,7]
[424283080,1780745591000,-500.0,0.00022,7]
[424283078,1780745591000,-500.0,0.00022,7]
[424283077,1780745591000,-500.0,0.00022,7]
[424283076,1780745591000,-500.0,0.00022,7]
[424283074,1780745591000,-500.0,0.00022,7]
[424283075,1780745591000,-500.0,0.00022,7]
[424283073,1780745591000,-500.0,0.00022,7]
[424283072,1780745591000,-500.0,0.00022,7]
[424283071,1780745591000,-500.0,0.00022,7]
[424283056,1780745591000,-500.0,0.00022,7]
[424283069,1780745591000,-500.0,0.00022,7]
[424283059,1780745591000,-500.0,0.00022,7]
[424283058,1780745591000,-500.0,0.00022,7]
[424283060,1780745591000,-500.0,0.00022,7]
[424283061,1780745591000,-500.0,0.00022,7]
[424283062,1780745591000,-500.0,0.00022,7]
[424283068,1780745591000,-500.0,0.00022,7]
[424283065,1780745591000,-500.0,0.00022,7]
[424283064,1780745591000,-500.0,0.00022,7]
[424283067,1780745591000,-500.0,0.00022,7]
[424283070,1780745591000,-500.0,0.00022,7]
[424283063,1780745591000,-500.0,0.00022,7]
[424283097,1780745592000,-500.0,0.00022,7]
[424283099,1780745592000,-171.25,0.00022,7]
[424283096,1780745592000,-500.0,0.00022,7]
[424283100,1780745592000,-215.80795776,0.00022,7]
[424283098,1780745592000,-500.0,0.00022,7]
[424283095,1780745592000,-500.0,0.00022,7]
[424283093,1780745592000,-500.0,0.00022,7]
[424283092,1780745592000,-500.0,0.00022,7]
[424283090,1780745592000,-500.0,0.00022,7]
[424283091,1780745592000,-500.0,0.00022,7]
[424283089,1780745592000,-500.0,0.00022,7]
[424283088,1780745592000,-500.0,0.00022,7]
[424283102,1780745592000,-1400.0,0.00022452,7]
[424283086,1780745592000,-500.0,0.00022,7]
[424283085,1780745592000,-500.0,0.00022,7]
[424283084,1780745592000,-500.0,0.00022,7]
[424283083,1780745592000,-500.0,0.00022,7]
[424283094,1780745592000,-500.0,0.00022,7]
[424283087,1780745592000,-500.0,0.00022,7]
[424283103,1780745592000,-500.0,0.00022452,7]
[424283104,1780745592000,-880.98792683,0.00022518,7]
[424283122,1780745592000,-163.0,0.00023,7]
[424283121,1780745592000,-800.0,0.00023,8]
[424283118,1780745592000,-800.0,0.00023,8]
[424283119,1780745592000,-800.0,0.00023,8]
[424283101,1780745592000,-1202.16,0.000224,7]
[424283117,1780745592000,-800.0,0.00023,8]
[424283114,1780745592000,-800.0,0.00023,8]
[424283116,1780745592000,-800.0,0.00023,8]
[424283115,1780745592000,-800.0,0.00023,8]
[424283120,1780745592000,-800.0,0.00023,8]
[424283112,1780745592000,-458.0,0.0002297,7]
[424283113,1780745592000,-400.0,0.00023,7]
[424283105,1780745592000,-880.98792683,0.00022583,7]
[424283106,1780745592000,-880.98792683,0.00022647,7]
[424283107,1780745592000,-215.80795776,0.000227,7]
[424283110,1780745592000,-880.98792683,0.00022841,7]
[424283109,1780745592000,-880.98792683,0.00022776,7]
[424283111,1780745592000,-880.98792683,0.00022906,7]
[424283108,1780745592000,-880.98792683,0.00022712,7]
[424283123,1780745593000,-167.0,0.00023,7]
[424283129,1780745593000,-800.0,0.00023,8]
[424283130,1780745593000,-800.0,0.00023,8]
[424283128,1780745593000,-800.0,0.00023,8]
[424283127,1780745593000,-800.0,0.00023,8]
[424283126,1780745593000,-800.0,0.00023,8]
[424283125,1780745593000,-800.0,0.00023,8]
[424283124,1780745593000,-800.0,0.00023,8]
[424283131,1780745593000,-800.0,0.00023,8]
[424283133,1780745594000,344.0,0.00022,7]
[424283132,1780745594000,458.0,0.00021356,7]
[424283134,1780745600000,386.76849202,0.00023,120]
[424283135,1780745605000,570.0,0.00023,7]
[424283136,1780745609000,1561.03,0.000175,7]
[424283137,1780745610000,1300.86,0.000222,14]
[424283138,1780745616000,150.0,0.0003013,120]
[424283139,1780745619000,150.0,0.0003013,120]
[424283142,1780745631000,1200.0,0.00022452,7]
[424283141,1780745631000,1200.0,0.00021356,7]
[424283140,1780745631000,500.0,0.00021356,7]
[424283143,1780745649000,500.0,0.00021356,7]
[424283144,1780745650000,500.0,0.00022452,7]
[424283145,1780745652000,500.0,0.00022066,14]
[424283147,1780745737000,1000.0,0.0003013,120]
[424283148,1780745790000,500.0,0.00030137,120]
[424283149,1780745806000,500.0,0.00030137,120]
[424283150,1780745816000,500.0,0.00030137,120]
[424283151,1780745825000,500.0,0.00030137,120]
[424283152,1780745842000,500.0,0.00030137,120]
[424283153,1780745850000,500.0,0.00030137,120]
[424283154,1780745858000,502.5,0.00030137,120]
[424283155,1780745866000,500.0,0.00030137,120]
[424283156,1780745928000,154.98,5.892e-05,2]
[424283157,1780745928000,22.43,5.892e-05,2]
[424283160,1780746073000,1000.0,0.0003013,120]
[424283179,1780746404000,188.87443648,6.447e-05,2]
[424283178,1780746404000,162.0,6.447e-05,2]
[424283175,1780746404000,182.85100803,6.447e-05,2]
[424283177,1780746404000,172.26173498,6.447e-05,2]
[424283174,1780746404000,250.0,6.447e-05,2]
[424283171,1780746404000,439.67858554,6.447e-05,2]
[424283172,1780746404000,172.57858554,6.447e-05,2]
[424283173,1780746404000,170.47568926,6.447e-05,2]
[424283170,1780746404000,250.0,6.447e-05,2]
[424283169,1780746404000,159.24269453,6.447e-05,2]
[424283176,1780746404000,314.25726564,6.447e-05,2]
[424283180,1780746406000,1000.0,0.0003013,120]
[424283192,1780746497000,150.0,6.783e-05,7]
[424283210,1780746498000,-159.59632877,6.995e-05,2]
[424283211,1780746498000,-1000.0,7e-05,2]
[424283194,1780746498000,-418.58,6.65e-05,2]
[424283195,1780746498000,-193.98753391,6.658e-05,2]
[424283197,1780746498000,-150.0,6.682e-05,2]
[424283196,1780746498000,-250.0,6.666e-05,2]
[424283200,1780746498000,-326.01117055,6.715e-05,2]
[424283198,1780746498000,-200.0,6.693e-05,2]
[424283201,1780746498000,-150.0,6.715e-05,2]
[424283193,1780746498000,259.3716399,7.182e-05,7]
[424283202,1780746498000,-392.15286485,6.723e-05,2]
[424283204,1780746498000,-166.67,6.785e-05,2]
[424283203,1780746498000,-150.0,6.782e-05,2]
[424283205,1780746498000,-500.0,6.8e-05,2]
[424283207,1780746498000,-700.0,6.9e-05,2]
[424283206,1780746498000,-150.0,6.848e-05,2]
[424283208,1780746498000,-255.0,6.915e-05,2]
[424283209,1780746498000,-139.08367123,6.995e-05,2]
[424283199,1780746498000,-200.0,6.7e-05,2]
[424283212,1780746499000,-166.67,7.158e-05,2]
[424283214,1780746499000,-250.0,7.315e-05,2]
[424283215,1780746499000,-193.0,7.315e-05,2]
[424283213,1780746499000,-500.0,7.292e-05,2]
[424283218,1780746499000,-399.05781513,7.36e-05,2]
[424283219,1780746499000,-63.7645288,7.36e-05,2]
[424283217,1780746499000,-234.09803914,7.36e-05,2]
[424283216,1780746499000,-150.0,7.359e-05,2]
[424283220,1780746504000,177.66,0.00028973,120]
[424283227,1780746523000,-500.0,7.359e-05,2]
[424283221,1780746523000,-279.34047059,7.359e-05,2]
[424283222,1780746523000,-163.8686274,7.359e-05,2]
[424283223,1780746523000,-364.94799682,7.359e-05,2]
[424283224,1780746523000,-500.0,7.359e-05,2]
[424283225,1780746523000,-500.0,7.359e-05,2]
[424283226,1780746523000,-386.01867945,7.359e-05,2]
[424283232,1780746523000,-171.46268212,7.359e-05,2]
[424283229,1780746523000,-500.0,7.359e-05,2]
[424283230,1780746523000,-259.10241548,7.359e-05,2]
[424283231,1780746523000,-365.89780773,7.359e-05,2]
[424283235,1780746523000,-1855.44814641,7.359e-05,2]
[424283234,1780746523000,-528.12680649,7.359e-05,2]
[424283233,1780746523000,-328.53731788,7.359e-05,2]
[424283228,1780746523000,-500.0,7.359e-05,2]
[424283236,1780746524000,-789.3460656,7.359e-05,2]
[424283239,1780746550000,-1066.10208081,7.359e-05,2]
[424283240,1780746550000,-1855.44814641,7.359e-05,2]
[424283242,1780746550000,-1126.51775372,7.359e-05,2]
[424283238,1780746550000,-1000.0,7.359e-05,2]
[424283243,1780746550000,-1855.44814641,7.359e-05,2]
[424283244,1780746550000,-1668.51471978,7.359e-05,2]
[424283245,1780746550000,-186.93342663,7.359e-05,2]
[424283246,1780746550000,-1487.39283934,7.359e-05,2]
[424283241,1780746550000,-728.93039269,7.359e-05,2]
[424283282,1780746574000,-418.99646691,7.359e-05,2]
[424283280,1780746574000,-368.05530707,7.359e-05,2]
[424283281,1780746574000,-1855.44814641,7.359e-05,2]
[424283283,1780746589000,350.0,8.219e-05,3]
[424283290,1780746631000,-3858.75604452,7.261e-05,2]
[424283289,1780746631000,-385.37598275,7.261e-05,2]
[424283287,1780746631000,-143719.12941405,7.261e-05,2]
[424283288,1780746631000,-20174.23096504,7.261e-05,2]
[424283301,1780746633000,-458.76640418,7.261e-05,2]
[424283302,1780746633000,-554.18570853,7.261e-05,2]
[424283300,1780746633000,-14393.2415099,7.261e-05,2]
[424283305,1780746633000,-344.69894631,7.261e-05,2]
[424283304,1780746633000,-1020.54048194,7.261e-05,2]
[424283303,1780746633000,-1680.0,7.261e-05,2]
[424283534,1780746639000,-633045.24768915,7.261e-05,2]
[424283528,1780746639000,-295.607039,7.261e-05,2]
[424283526,1780746639000,-3676.13639697,7.261e-05,2]
[424283766,1780746642000,-621.05778111,7.261e-05,2]
[424283778,1780746645000,-866.0948,7.261e-05,2]
[424283777,1780746645000,-393.81868271,7.261e-05,2]
[424283780,1780746646000,-585.17472321,7.261e-05,2]
[424283779,1780746646000,-1331.4335366,7.261e-05,2]
[424283786,1780746657000,175.26703918,6.447e-05,2]
[424283785,1780746657000,44.02556352,6.447e-05,2]
[424283787,1780746657000,250.37775007,6.447e-05,2]
[424283788,1780746657000,152.0965437,6.447e-05,2]
[424283790,1780746657000,154.98,6.447e-05,2]
[424283791,1780746657000,178.051233,6.447e-05,2]
[424283793,1780746657000,43.54533043,6.447e-05,2]
[424283792,1780746657000,154.98,6.447e-05,2]
[424283789,1780746657000,699.0965401,6.447e-05,2]
[424283795,1780746700000,156.4034983,6.447e-05,2]
[424283803,1780746700000,152.60098935,6.447e-05,2]
[424283797,1780746700000,154.98,6.447e-05,2]
[424283796,1780746700000,250.37775007,6.447e-05,2]
[424283799,1780746700000,175.26703918,6.447e-05,2]
[424283800,1780746700000,158.54478925,6.447e-05,2]
[424283798,1780746700000,232.9,6.447e-05,2]
[424283801,1780746700000,205.423467,6.447e-05,2]
[424283802,1780746700000,274.63746495,6.447e-05,2]
[424283804,1780746700000,158.54478925,6.447e-05,2]
[424283805,1780746700000,205.423467,6.447e-05,2]
[424283794,1780746700000,138.1273641,6.447e-05,2]
[424283809,1780746700000,626.63265237,6.447e-05,2]
[424283817,1780746700000,191.81176734,6.447e-05,2]
[424283806,1780746700000,1020.9537703,6.447e-05,2]
[424283815,1780746700000,153.33164609,6.447e-05,2]
[424283814,1780746700000,181.67269453,6.447e-05,2]
[424283813,1780746700000,203.39681703,6.447e-05,2]
[424283816,1780746700000,391.09981163,6.447e-05,2]
[424283811,1780746700000,265.42643866,6.447e-05,2]
[424283810,1780746700000,234.57356134,6.447e-05,2]
[424283808,1780746700000,159.93218629,6.447e-05,2]
[424283807,1780746700000,340.06781371,6.447e-05,2]
[424283812,1780746700000,205.10707041,6.447e-05,2]
[424283818,1780746711000,3523.27448576,0.00030136,120]
[424283819,1780746715000,350.0,8.219e-05,3]
[424283820,1780746736000,1000.0,0.0003013,120]
[424283826,1780747068000,1000.0,0.0003013,120]
[424283827,1780747123000,350.0,8.219e-05,3]
[424283829,1780747286000,500.0,0.00030136,120]
[424283828,1780747286000,500.0,0.00030136,120]
[424283830,1780747287000,500.0,0.00030136,120]
[424283832,1780747287000,500.0,0.00030136,120]
[424283831,1780747287000,500.0,0.00030136,120]
[424283836,1780747288000,500.0,0.00030136,120]
[424283835,1780747288000,500.0,0.00030136,120]
[424283834,1780747288000,500.0,0.00030136,120]
[424283833,1780747288000,500.0,0.00030136,120]
[424283838,1780747289000,500.0,0.00030136,120]
[424283837,1780747289000,500.0,0.00030136,120]
[424283839,1780747291000,500.0,0.00030136,120]
[424283841,1780747291000,500.0,0.00030136,120]
[424283840,1780747291000,500.0,0.00030136,120]
[424283844,1780747292000,500.0,0.00030136,120]
[424283843,1780747292000,500.0,0.00030136,120]
[424283842,1780747292000,500.0,0.00030136,120]
[424283847,1780747293000,500.0,0.00030136,120]
[424283846,1780747293000,500.0,0.00030136,120]
[424283845,1780747293000,500.0,0.00030136,120]
[424283849,1780747294000,500.0,0.00030136,120]
[424283848,1780747294000,500.0,0.00030136,120]
[424283851,1780747294000,500.0,0.00030136,120]
[424283850,1780747294000,500.0,0.00030136,120]
[424283852,1780747295000,500.0,0.00030136,120]
[424283857,1780747296000,500.0,0.00030136,120]
[424283856,1780747296000,500.0,0.00030136,120]
[424283855,1780747296000,500.0,0.00030136,120]
[424283854,1780747296000,500.0,0.00030136,120]
[424283853,1780747296000,500.0,0.00030136,120]
[424283858,1780747297000,500.0,0.00030136,120]
[424283859,1780747297000,500.0,0.00030136,120]
[424283861,1780747297000,500.0,0.00030136,120]
[424283860,1780747297000,500.0,0.00030136,120]
[424283864,1780747298000,500.0,0.00030136,120]
[424283863,1780747298000,500.0,0.00030136,120]
[424283862,1780747298000,500.0,0.00030136,120]
[424283867,1780747299000,500.0,0.00030136,120]
[424283866,1780747299000,500.0,0.00030136,120]
[424283865,1780747299000,500.0,0.00030136,120]
[424283869,1780747300000,500.0,0.00030136,120]
[424283868,1780747300000,500.0,0.00030136,120]
[424283871,1780747300000,500.0,0.00030136,120]
[424283870,1780747300000,500.0,0.00030136,120]
[424283874,1780747301000,500.0,0.00030136,120]
[424283873,1780747301000,500.0,0.00030136,120]
[424283872,1780747301000,500.0,0.00030136,120]
[424283878,1780747302000,500.0,0.00030136,120]
[424283877,1780747302000,500.0,0.00030136,120]
[424283876,1780747302000,500.0,0.00030136,120]
[424283875,1780747302000,500.0,0.00030136,120]
[424283879,1780747303000,500.0,0.00030136,120]
[424283881,1780747303000,500.0,0.00030136,120]
[424283880,1780747303000,500.0,0.00030136,120]
[424283885,1780747304000,500.0,0.00030136,120]
[424283884,1780747304000,500.0,0.00030136,120]
[424283883,1780747304000,500.0,0.00030136,120]
[424283882,1780747304000,500.0,0.00030136,120]
[424283887,1780747305000,500.0,0.00030136,120]
[424283886,1780747305000,500.0,0.00030136,120]
[424283888,1780747306000,500.0,0.00030136,120]
[424283889,1780747307000,500.0,0.00030136,120]
[424283890,1780747307000,500.0,0.00030136,120]
[424283893,1780747307000,500.0,0.00030136,120]
[424283892,1780747307000,500.0,0.00030136,120]
[424283891,1780747307000,500.0,0.00030136,120]
[424283896,1780747308000,500.0,0.00030136,120]
[424283894,1780747308000,500.0,0.00030136,120]
[424283897,1780747308000,500.0,0.00030136,120]
[424283895,1780747308000,500.0,0.00030136,120]
[424283898,1780747309000,500.0,0.00030136,120]
[424283900,1780747309000,500.0,0.00030136,120]
[424283899,1780747309000,500.0,0.00030136,120]
[424283903,1780747310000,500.0,0.00030136,120]
[424283902,1780747310000,500.0,0.00030136,120]
[424283901,1780747310000,500.0,0.00030136,120]
[424283906,1780747311000,500.0,0.00030136,120]
[424283905,1780747311000,500.0,0.00030136,120]
[424283904,1780747311000,500.0,0.00030136,120]
[424283908,1780747312000,500.0,0.00030136,120]
[424283907,1780747312000,500.0,0.00030136,120]
[424283909,1780747313000,500.0,0.00030136,120]
[424283910,1780747314000,500.0,0.00030136,120]
[424283913,1780747314000,500.0,0.00030136,120]
[424283912,1780747314000,500.0,0.00030136,120]
[424283911,1780747314000,500.0,0.00030136,120]
[424283914,1780747315000,500.0,0.00030136,120]
[424283916,1780747315000,500.0,0.00030136,120]
[424283915,1780747315000,500.0,0.00030136,120]
[424283919,1780747316000,500.0,0.00030136,120]
[424283920,1780747316000,500.0,0.00030136,120]
[424283918,1780747316000,500.0,0.00030136,120]
[424283917,1780747316000,500.0,0.00030136,120]
[424283922,1780747317000,500.0,0.00030136,120]
[424283921,1780747317000,500.0,0.00030136,120]
[424283926,1780747318000,500.0,0.00030136,120]
[424283925,1780747318000,500.0,0.00030136,120]
[424283924,1780747318000,500.0,0.00030136,120]
[424283923,1780747318000,500.0,0.00030136,120]
[424283927,1780747319000,500.0,0.00030136,120]
[424283929,1780747319000,500.0,0.00030136,120]
[424283928,1780747319000,500.0,0.00030136,120]
[424283933,1780747320000,500.0,0.00030136,120]
[424283932,1780747320000,500.0,0.00030136,120]
[424283931,1780747320000,500.0,0.00030136,120]
[424283930,1780747320000,500.0,0.00030136,120]
[424283936,1780747321000,500.0,0.00030136,120]
[424283935,1780747321000,500.0,0.00030136,120]
[424283934,1780747321000,500.0,0.00030136,120]
[424283937,1780747322000,500.0,0.00030136,120]
[424283938,1780747322000,500.0,0.00030136,120]
[424283940,1780747322000,500.0,0.00030136,120]
[424283939,1780747322000,500.0,0.00030136,120]
[424283941,1780747323000,500.0,0.00030136,120]
[424283942,1780747323000,500.0,0.00030136,120]
[424283944,1780747324000,500.0,0.00030136,120]
[424283945,1780747324000,2000.0,0.0003,120]
[424283943,1780747324000,500.0,0.00030136,120]
[424283946,1780747324000,500.0,0.00030136,120]
[424283948,1780747325000,500.0,0.00030136,120]
[424283947,1780747325000,500.0,0.00030136,120]
[424283951,1780747326000,500.0,0.00030136,120]
[424283949,1780747326000,500.0,0.00030136,120]